[Event "FIDE World Junior U20-ch Girls 2025"]
[Site "Petrovac"]
[Date "2025.02.28"]
[Round "4.25"]
[White "Lindstad, Livia"]
[Black "Smietanska, Wiktoria"]
[Result "0-1"]
[Annotator "ChessBase"]
[ECO "B51"]
[WhiteElo "2017"]
[BlackElo "2170"]
[PlyCount "94"]
[EventDate "2025.02.23"]
[EventType "swiss"]
[EventCountry "MNE"]
[SourceTitle "playchess.com"]
[Source "ChessBase"]
[SourceQuality "1"]
[TimeControl "40/5400+30:1800+30"]

1. e4 {[%emt 0:00:07]} c5 {[%emt 0:00:08]} 2. Nf3 {[%emt 0:00:15]} d6 {[%emt 0:00:07]} 3. Bb5+ {[%emt 0:00:23]} Nd7 {[%emt 0:00:10]} 4. O-O {[%emt 0:00:37]} a6 {[%emt 0:00:10]} 5. Bd3 {[%emt 0:00:25]} Ngf6 {[%emt 0:00:25]} 6. c3 {[%emt 0:01:00]} b5 {[%emt 0:00:28]} 7. Re1 {[%emt 0:03:22]} Bb7 {[%emt 0:00:50]} 8. Bc2 {[%emt 0:01:27]} c4 {[%emt 0:00:30]} 9. d4 {[%emt 0:04:13]} cxd3 {[%emt 0:00:34]} 10. Bxd3 {[%emt 0:01:14]} Nc5 {[%emt 0:02:54]} 11. Qc2 {[%emt 0:00:50]} e6 {[%emt 0:02:10]} 12. b4 {[%emt 0:07:16]} Nxd3 {[%emt 0:04:45]} 13. Qxd3 {[%emt 0:00:13]} Be7 {[%emt 0:03:54]} 14. Nbd2 {[%emt 0:02:42]} O-O {[%emt 0:09:01]} 15. Bb2 {[%emt 0:08:21]} Qc7 {[%emt 0:06:30]} 16. a4 {[%emt 0:04:28]} bxa4 {[%emt 0:03:08]} 17. Rxa4 {[%emt 0:00:46]} Nd7 {[%emt 0:06:14]} 18. Nb3 {[%emt 0:04:42]} Nb6 {[%emt 0:03:19]} 19. Ra2 {[%emt 0:03:03]} Nc4 {[%emt 0:03:58]} 20. Na5 {[%emt 0:06:40]} Nxa5 {[%emt 0:01:54]} 21. Rxa5 {[%emt 0:00:16]} Rac8 {[%emt 0:01:45]} 22. Rh5 {[%emt 0:12:08]} Qc4 {[%emt 0:06:58]} 23. Qxc4 {[%emt 0:06:28]} Rxc4 {[%emt 0:00:04]} 24. Nd2 {[%emt 0:00:14]} Rc7 {[%emt 0:00:26]} 25. f4 {[%emt 0:01:15]} Bf6 {[%emt 0:03:11]} 26. Re3 {[%emt 0:03:41]} Rfc8 {[%emt 0:04:27]} 27. Rhh3 {[%emt 0:03:05]} d5 {[%emt 0:19:26]} 28. exd5 {[%emt 0:08:22]} Bxd5 {[%emt 0:00:23]} 29. Rd3 {[%emt 0:00:50]} a5 {[%emt 0:05:10]} 30. bxa5 {[%emt 0:01:11]} Ra7 {[%emt 0:00:45]} 31. Ba3 {[%emt 0:05:12]} Rxa5 {[%emt 0:00:23]} 32. Bb4 {[%emt 0:00:07]} Ra2 {[%emt 0:01:35]} 33. Nf3 {[%emt 0:01:59]} Rc2 {[%emt 0:01:05]} 34. Ne1 {[%emt 0:00:57]} Rc1 {[%emt 0:01:05]} 35. Kf2 {[%emt 0:00:09]} Rc4 {[%emt 0:02:04]} 36. Ba3 {[%emt 0:04:42]} R1xc3 {[%emt 0:03:14]} 37. Rxc3 {[%emt 0:00:14]} Bxc3 {[%emt 0:00:15]} 38. Bd6 {[%emt 0:01:09]} Bd2 {[%emt 0:01:55]} 39. Nd3 {[%emt 0:01:07]} Rc2 {[%emt 0:00:33]} 40. Kg3 {[%emt 0:03:03]} Bc3 {[%emt 0:01:57]} 41. Be5 {[%emt 0:08:55]} Rxg2+ {[%emt 0:01:21]} 42. Kh4 {[%emt 0:00:21]} Ba5 {[%emt 0:00:42]} 43. f5 {[%emt 0:05:32]} exf5 {[%emt 0:01:10]} 44. Kh5 {[%emt 0:07:59]} Bd8 {[%emt 0:01:31]} 45. Bxg7 {[%emt 0:02:13]} Kxg7 {[%emt 0:00:59]} 46. Nf4 {[%emt 0:01:24]} Rg5+ {[%emt 0:00:12]} 47. Kh4 {[%emt 0:00:11]} Rg4+ {[%emt 0:00:13]} 0-1

[Event "FIDE World Junior U20-ch Girls 2025"]
[Site "Petrovac"]
[Date "2025.02.28"]
[Round "4.26"]
[White "Cornileau, Juliette"]
[Black "Gasparyan, Milena"]
[Result "0-1"]
[Annotator "NA"]
[ECO "B12"]
[WhiteElo "2144"]
[BlackElo "1986"]
[PlyCount "104"]
[EventDate "2025.02.23"]
[EventType "swiss"]
[EventCountry "MNE"]
[SourceTitle "playchess.com"]
[Source "ChessBase"]
[SourceQuality "1"]
[TimeControl "40/5400+30:1800+30"]

1. e4 {[%emt 0:00:03]} c6 {[%emt 0:00:16]} 2. d4 {[%emt 0:00:05]} d5 {[%emt 0:00:04]} 3. e5 {[%emt 0:00:01]} Bf5 {[%emt 0:00:06]} 4. h4 {[%emt 0:00:04]} h5 {[%emt 0:00:07]} 5. Bd3 {[%emt 0:00:11]} Bxd3 {[%emt 0:00:18]} 6. Qxd3 {[%emt 0:00:05]} Qa5+ {[%emt 0:04:01]} 7. b4 {[%emt 0:00:41]} Qa6 {[%emt 0:01:01]} 8. Qb3 {[%emt 0:00:25]} e6 {[%emt 0:00:22]} 9. a4 {[%emt 0:01:59]} Qb6 {[%emt 0:04:51]} 10. c3 {[%emt 0:00:38]} a5 {[%emt 0:00:47]} 11. b5 {[%emt 0:00:14]} c5 {[%emt 0:02:06]} 12. Nf3 {[%emt 0:15:34]} Nh6 {[%emt 0:24:05]} 13. c4 {[%emt 0:16:42]} dxc4 {[%emt 0:11:10]} 14. Qxc4 {[%emt 0:00:12]} Nd7 {[%emt 0:00:03]} 15. d5 {[%emt 0:03:00]} Ng4 {[%emt 0:00:49]} 16. Bb2 {[%emt 0:10:26]} exd5 {[%emt 0:03:40]} 17. Qxd5 {[%emt 0:00:05]} c4 {[%emt 0:00:15]} 18. O-O {[%emt 0:01:41]} Bc5 {[%emt 0:00:43]} 19. Bd4 {[%emt 0:08:45]} Bxd4 {[%emt 0:04:30]} 20. Nxd4 {[%emt 0:00:17]} Ndxe5 {[%emt 0:00:26]} 21. Nf5 {[%emt 0:11:40]} Rd8 {[%emt 0:06:03]} 22. Qe4 {[%emt 0:01:32]} g6 {[%emt 0:00:12]} 23. Ne3 {[%emt 0:02:58]} Rd4 {[%emt 0:02:28]} 24. Qc2 {[%emt 0:02:55]} Nxe3 {[%emt 0:08:36]} 25. fxe3 {[%emt 0:00:05]} Rd3 {[%emt 0:00:09]} 26. Qf2 {[%emt 0:03:20]} Qxe3 {[%emt 0:02:20]} 27. Re1 {[%emt 0:01:04]} Qxf2+ {[%emt 0:00:25]} 28. Kxf2 {[%emt 0:00:04]} f6 {[%emt 0:00:05]} 29. Na3 {[%emt 0:01:11]} Kf7 {[%emt 0:00:12]} 30. Re4 {[%emt 0:03:02]} Rc8 {[%emt 0:00:55]} 31. Kg1 {[%emt 0:03:21]} c3 {[%emt 0:01:32]} 32. Rc1 {[%emt 0:00:47]} Rd2 {[%emt 0:00:55]} 33. Nb1 {[%emt 0:00:59]} Rb2 {[%emt 0:06:34]} 34. Re3 {[%emt 0:05:44]} c2 {[%emt 0:00:12]} 35. Na3 {[%emt 0:00:08]} Rb4 {[%emt 0:03:28]} 36. Rxc2 {[%emt 0:00:17]} Rxc2 {[%emt 0:00:03]} 37. Nxc2 {[%emt 0:00:05]} Rxa4 {[%emt 0:00:06]} 38. Re1 {[%emt 0:01:37]} Rxh4 {[%emt 0:00:22]} 39. Ra1 {[%emt 0:00:56]} b6 {[%emt 0:00:15]} 40. Rd1 {[%emt 0:00:56]} Rc4 {[%emt 0:01:10]} 41. Ne3 {[%emt 0:30:27]} Rb4 {[%emt 0:30:28]} 42. Rd6 {[%emt 0:00:39]} Rb1+ {[%emt 0:00:20]} 43. Kf2 {[%emt 0:00:10]} Rxb5 {[%emt 0:00:06]} 44. Nd5 {[%emt 0:00:22]} Ng4+ {[%emt 0:00:15]} 45. Kf3 {[%emt 0:01:16]} Rb3+ {[%emt 0:00:19]} 46. Ke2 {[%emt 0:00:07]} b5 {[%emt 0:01:38]} 47. Ra6 {[%emt 0:00:07]} a4 {[%emt 0:00:12]} 48. Ra7+ {[%emt 0:00:15]} Ke6 {[%emt 0:00:16]} 49. Nc7+ {[%emt 0:00:44]} Kd6 {[%emt 0:00:36]} 50. Ne8+ {[%emt 0:00:15]} Kc5 {[%emt 0:00:09]} 51. Rc7+ {[%emt 0:01:02]} Kb6 {[%emt 0:01:16]} 52. Rf7 {[%emt 0:00:38]} Re3+ {[%emt 0:00:07]} 0-1

[Event "FIDE World Junior U20-ch Girls 2025"]
[Site "Petrovac"]
[Date "2025.02.28"]
[Round "4.27"]
[White "Imomkuzieva, Nilufarkhon"]
[Black "Tarasenka, Aliaksandra"]
[Result "1/2-1/2"]
[Annotator "ChessBase"]
[ECO "A62"]
[WhiteElo "1983"]
[BlackElo "2139"]
[PlyCount "113"]
[EventDate "2025.02.23"]
[EventType "swiss"]
[EventCountry "MNE"]
[SourceTitle "playchess.com"]
[Source "ChessBase"]
[SourceQuality "1"]
[TimeControl "40/5400+30:1800+30"]

1. d4 {[%emt 0:00:02]} Nf6 {[%emt 0:00:46]} 2. c4 {[%emt 0:00:04]} e6 {[%emt 0:00:20]} 3. g3 {[%emt 0:00:05]} c5 {[%emt 0:00:47]} 4. d5 {[%emt 0:00:05]} exd5 {[%emt 0:00:33]} 5. cxd5 {[%emt 0:00:06]} d6 {[%emt 0:00:04]} 6. Nc3 {[%emt 0:00:04]} g6 {[%emt 0:00:24]} 7. Bg2 {[%emt 0:00:06]} Bg7 {[%emt 0:00:05]} 8. Nf3 {[%emt 0:00:03]} O-O {[%emt 0:00:33]} 9. O-O {[%emt 0:00:03]} Re8 {[%emt 0:00:27]} 10. Re1 {[%emt 0:00:06]} a6 {[%emt 0:15:57]} 11. a4 {[%emt 0:00:08]} Ne4 {[%emt 0:00:12]} 12. Nxe4 {[%emt 0:00:09]} Rxe4 {[%emt 0:00:08]} 13. Qc2 {[%emt 0:00:02]} Rb4 {[%emt 0:03:10]} 14. Ra2 {[%emt 0:00:04]} Nd7 {[%emt 0:06:39]} 15. Bd2 {[%emt 0:00:25]} a5 {[%emt 0:02:28]} 16. Bxb4 {[%emt 0:03:18]} cxb4 {[%emt 0:01:06]} 17. Nd2 {[%emt 0:03:05]} Nc5 {[%emt 0:03:49]} 18. Nb3 {[%emt 0:07:30]} b6 {[%emt 0:05:37]} 19. e4 {[%emt 0:05:33]} Ba6 {[%emt 0:15:33]} 20. Bf1 {[%emt 0:05:10]} Bxf1 {[%emt 0:03:52]} 21. Rxf1 {[%emt 0:03:41]} Rc8 {[%emt 0:03:16]} 22. Rc1 {[%emt 0:03:13]} Qf6 {[%emt 0:04:14]} 23. Qe2 {[%emt 0:02:21]} Re8 {[%emt 0:07:44]} 24. Nxc5 {[%emt 0:06:38]} bxc5 {[%emt 0:00:16]} 25. Re1 {[%emt 0:18:12]} Qd4 {[%emt 0:07:57]} 26. b3 {[%emt 0:00:24]} Qc3 {[%emt 0:02:22]} 27. Qd1 {[%emt 0:01:42]} h5 {[%emt 0:12:16]} 28. Re3 {[%emt 0:00:56]} Qf6 {[%emt 0:00:14]} 29. Qd3 {[%emt 0:02:27]} Qd8 {[%emt 0:00:44]} 30. Kg2 {[%emt 0:00:34]} Bd4 {[%emt 0:01:52]} 31. Ree2 {[%emt 0:00:56]} Qc7 {[%emt 0:01:14]} 32. Rad2 {[%emt 0:00:33]} Bc3 {[%emt 0:00:39]} 33. Rd1 {[%emt 0:00:06]} c4 {[%emt 0:00:35]} 34. bxc4 {[%emt 0:01:45]} Rc8 {[%emt 0:00:23]} 35. e5 Bxe5 {[%emt 0:00:22]} 36. Rxe5 dxe5 {[%emt 0:00:02]} 37. d6 {[%emt 0:07:27]} Qd7 {[%emt 0:01:04]} 38. Qd5 {[%emt 0:00:03]} h4 {[%emt 0:01:08]} 39. c5 {[%emt 0:01:03]} h3+ {[%emt 0:00:06]} 40. Kg1 {[%emt 0:00:02]} b3 {[%emt 0:00:39]} 41. Rb1 {[%emt 0:32:47]} Qf5 {[%emt 0:10:34]} 42. Rxb3 {[%emt 0:00:00]} Qc2 {[%emt 0:00:41]} 43. Qd3 {[%emt 0:00:00]} Qxc5 {[%emt 0:04:16]} 44. d7 {[%emt 0:00:00]} Rd8 {[%emt 0:00:05]} 45. Rc3 {[%emt 0:00:00]} Rxd7 {[%emt 0:01:15]} 46. Rxc5 {[%emt 0:01:29]} Rxd3 {[%emt 0:00:24]} 47. Kf1 {[%emt 0:00:03]} Rd1+ {[%emt 0:10:57]} 48. Ke2 {[%emt 0:00:04]} Rh1 {[%emt 0:00:04]} 49. Rxe5 {[%emt 0:04:54]} Rxh2 {[%emt 0:00:15]} 50. Kf3 {[%emt 0:00:02]} Rh1 {[%emt 0:00:54]} 51. Kg4 {[%emt 0:00:03]} f5+ {[%emt 0:01:48]} 52. Kh4 {[%emt 0:00:09]} Kg7 {[%emt 0:02:48]} 53. Rxa5 {[%emt 0:01:20]} Rf1 {[%emt 0:01:04]} 54. Kxh3 {[%emt 0:00:12]} Rxf2 {[%emt 0:00:04]} 55. g4 {[%emt 0:00:30]} Rf3+ {[%emt 0:00:16]} 56. Kg2 {[%emt 0:00:03]} fxg4 {[%emt 0:00:27]} 57. Rc5 {[%emt 0:00:35]} 1/2-1/2

[Event "FIDE World Junior U20-ch Girls 2025"]
[Site "Petrovac"]
[Date "2025.02.28"]
[Round "4.28"]
[White "Valcu, Lavinia"]
[Black "Guo, Hanxi"]
[Result "0-1"]
[Annotator "RC"]
[ECO "B33"]
[WhiteElo "2137"]
[BlackElo "1854"]
[PlyCount "158"]
[EventDate "2025.02.23"]
[EventType "swiss"]
[EventCountry "MNE"]
[SourceTitle "playchess.com"]
[Source "ChessBase"]
[SourceQuality "1"]
[TimeControl "40/5400+30:1800+30"]

1. e4 {[%emt 0:00:03]} c5 {[%emt 0:00:05]} 2. Nf3 {[%emt 0:00:05]} Nc6 {[%emt 0:00:02]} 3. d4 {[%emt 0:00:09]} cxd4 {[%emt 0:00:05]} 4. Nxd4 {[%emt 0:00:06]} Nf6 {[%emt 0:00:06]} 5. Nc3 {[%emt 0:00:07]} e5 {[%emt 0:00:10]} 6. Ndb5 {[%emt 0:00:04]} d6 {[%emt 0:00:21]} 7. Nd5 {[%emt 0:00:16]} Nxd5 {[%emt 0:00:07]} 8. exd5 {[%emt 0:00:04]} Nb8 {[%emt 0:01:14]} 9. Qf3 {[%emt 0:02:59]} a6 {[%emt 0:02:51]} 10. Qa3 {[%emt 0:01:01]} Be7 {[%emt 0:05:00]} 11. Bg5 {[%emt 0:03:07]} f6 {[%emt 0:06:32]} 12. Bd2 {[%emt 0:00:35]} O-O {[%emt 0:22:20]} 13. Bb4 {[%emt 0:01:33]} Qd7 {[%emt 0:01:51]} 14. O-O-O {[%emt 0:01:40]} Rd8 {[%emt 0:04:01]} 15. f4 {[%emt 0:00:19]} b6 {[%emt 0:04:19]} 16. fxe5 {[%emt 0:00:41]} fxe5 {[%emt 0:00:53]} 17. Bd2 {[%emt 0:00:14]} Qb7 {[%emt 0:06:58]} 18. Nc3 {[%emt 0:00:20]} b5 {[%emt 0:01:44]} 19. Qb4 {[%emt 0:01:07]} Nd7 {[%emt 0:03:12]} 20. Be3 {[%emt 0:01:22]} Nf6 {[%emt 0:07:40]} 21. Bd3 {[%emt 0:01:54]} Bd7 {[%emt 0:01:34]} 22. Rhf1 {[%emt 0:06:07]} Rf8 {[%emt 0:06:01]} 23. Qh4 {[%emt 0:16:51]} Rf7 {[%emt 0:10:51]} 24. Bg5 {[%emt 0:07:21]} Raf8 {[%emt 0:01:18]} 25. Bxf6 {[%emt 0:02:50]} gxf6 {[%emt 0:00:26]} 26. Bf5 {[%emt 0:03:29]} Bxf5 {[%emt 0:01:41]} 27. Rxf5 {[%emt 0:00:07]} Qa7 {[%emt 0:01:03]} 28. Ne4 {[%emt 0:01:46]} Qe3+ {[%emt 0:02:12]} 29. Kb1 {[%emt 0:02:02]} Qe2 {[%emt 0:00:50]} 30. Rd2 {[%emt 0:01:55]} Qe3 {[%emt 0:00:38]} 31. Qg3+ {[%emt 0:01:14]} Qxg3 {[%emt 0:00:13]} 32. Nxg3 {[%emt 0:00:14]} Rg7 {[%emt 0:00:32]} 33. c3 {[%emt 0:01:35]} Rc8 {[%emt 0:01:13]} 34. Ne4 {[%emt 0:06:58]} Kf7 {[%emt 0:00:29]} 35. Rdf2 {[%emt 0:01:05]} Rg6 {[%emt 0:01:03]} 36. Kc2 {[%emt 0:01:32]} Rcg8 {[%emt 0:01:36]} 37. g3 {[%emt 0:00:32]} Rh6 {[%emt 0:01:02]} 38. Kd3 {[%emt 0:01:00]} Rf8 {[%emt 0:00:50]} 39. b3 {[%emt 0:02:01]} Kg6 {[%emt 0:00:47]} 40. g4 {[%emt 0:10:00]} Rh3+ {[%emt 0:01:17]} 41. Ng3 {[%emt 0:33:54]} Rc8 {[%emt 0:32:40]} 42. R5f3 {[%emt 0:02:50]} Rc5 {[%emt 0:01:44]} 43. c4 {[%emt 0:02:30]} bxc4+ {[%emt 0:00:35]} 44. bxc4 {[%emt 0:00:05]} Ra5 {[%emt 0:00:42]} 45. Rb2 {[%emt 0:02:14]} Ra4 {[%emt 0:00:00]} 46. Rff2 {[%emt 0:00:00]} Bf8 {[%emt 0:00:00]} 47. Kc3 {[%emt 0:00:00]} Bh6 {[%emt 0:00:00]} 48. Rb8 {[%emt 0:00:00]} Be3 {[%emt 0:00:00]} 49. Re2 {[%emt 0:00:00]} Bc5 {[%emt 0:00:00]} 50. Rb7 {[%emt 0:00:18]} Rh4 {[%emt 0:00:00]} 51. Rb8 {[%emt 0:04:04]} Rh3 {[%emt 0:01:01]} 52. Rg2 {[%emt 0:02:17]} a5 {[%emt 0:03:12]} 53. Rb7 {[%emt 0:01:16]} Kg5 {[%emt 0:01:19]} 54. Rg7+ {[%emt 0:02:39]} Kf4 {[%emt 0:00:21]} 55. Rf7 {[%emt 0:00:36]} Bd4+ {[%emt 0:00:22]} 56. Kd3 {[%emt 0:00:51]} Ra3+ {[%emt 0:00:15]} 57. Ke2 {[%emt 0:00:04]} Rxa2+ {[%emt 0:00:06]} 58. Kf1 {[%emt 0:00:04]} Ra1+ {[%emt 0:00:47]} 59. Ke2 {[%emt 0:00:05]} e4 {[%emt 0:00:38]} 60. Rg7 {[%emt 0:01:23]} f5 {[%emt 0:01:00]} 61. Rf7 {[%emt 0:00:44]} Rxh2 {[%emt 0:00:35]} 62. Nh5+ {[%emt 0:02:22]} Kg5 {[%emt 0:00:19]} 63. Rxf5+ {[%emt 0:00:28]} Kh6 {[%emt 0:00:37]} 64. Rxh2 {[%emt 0:03:38]} Ra2+ {[%emt 0:00:04]} 65. Ke1 {[%emt 0:00:06]} Rxh2 {[%emt 0:00:12]} 66. Ng3 {[%emt 0:01:43]} a4 {[%emt 0:01:14]} 67. Nxe4 {[%emt 0:00:20]} a3 {[%emt 0:00:09]} 68. Nd2 {[%emt 0:00:10]} Bc3 {[%emt 0:00:05]} 69. Rf3 {[%emt 0:01:40]} Bxd2+ {[%emt 0:00:06]} 70. Kd1 {[%emt 0:00:09]} a2 {[%emt 0:00:03]} 71. Ra3 {[%emt 0:00:04]} Bc3 {[%emt 0:00:08]} 72. c5 {[%emt 0:00:13]} dxc5 {[%emt 0:00:21]} 73. d6 {[%emt 0:00:18]} Rd2+ {[%emt 0:00:06]} 74. Kc1 {[%emt 0:00:05]} Rxd6 {[%emt 0:00:12]} 75. Rxa2 {[%emt 0:00:03]} Bd4 {[%emt 0:00:13]} 76. Rg2 {[%emt 0:00:26]} Kg5 {[%emt 0:00:09]} 77. Kd2 {[%emt 0:00:10]} c4 {[%emt 0:00:29]} 78. Ke2 {[%emt 0:00:14]} Rf6 {[%emt 0:00:05]} 79. Rh2 {[%emt 0:00:30]} Rf2+ {[%emt 0:00:08]} 0-1

[Event "FIDE World Junior U20-ch Girls 2025"]
[Site "Petrovac"]
[Date "2025.02.28"]
[Round "4.29"]
[White "Seyilhanova, Gulmira"]
[Black "Mihelic, Vesna"]
[Result "0-1"]
[Annotator "NA"]
[ECO "A07"]
[WhiteElo "1939"]
[BlackElo "2115"]
[PlyCount "80"]
[EventDate "2025.02.23"]
[EventType "swiss"]
[EventCountry "MNE"]
[SourceTitle "playchess.com"]
[Source "ChessBase"]
[SourceQuality "1"]
[TimeControl "40/5400+30:1800+30"]

1. Nf3 {[%emt 0:00:03]} d5 {[%emt 0:00:06]} 2. g3 {[%emt 0:00:42]} Nc6 {[%emt 0:00:13]} 3. Bg2 {[%emt 0:00:18]} e5 {[%emt 0:00:15]} 4. d3 {[%emt 0:00:18]} Be6 {[%emt 0:00:12]} 5. c3 {[%emt 0:00:31]} h6 {[%emt 0:01:56]} 6. Nbd2 {[%emt 0:02:33]} Qd7 {[%emt 0:04:55]} 7. b4 {[%emt 0:01:14]} Bd6 {[%emt 0:03:37]} 8. Rb1 {[%emt 0:10:11]} Nf6 {[%emt 0:04:46]} 9. Bb2 {[%emt 0:03:25]} e4 {[%emt 0:13:25]} 10. Ng1 {[%emt 0:04:47]} exd3 {[%emt 0:11:52]} 11. exd3 {[%emt 0:00:09]} O-O {[%emt 0:00:45]} 12. Ne2 {[%emt 0:14:37]} Ne5 {[%emt 0:04:23]} 13. Nb3 {[%emt 0:03:13]} Bf5 {[%emt 0:03:51]} 14. Nbc1 {[%emt 0:00:43]} Bg4 {[%emt 0:05:03]} 15. O-O {[%emt 0:03:03]} Nf3+ {[%emt 0:03:04]} 16. Kh1 {[%emt 0:00:13]} Qf5 {[%emt 0:01:03]} 17. Nd4 {[%emt 0:16:50]} Nxd4 {[%emt 0:11:20]} 18. f3 {[%emt 0:00:08]} Qh5 {[%emt 0:00:43]} 19. Kg1 {[%emt 0:10:54]} Nxf3+ {[%emt 0:13:48]} 20. Bxf3 {[%emt 0:00:12]} Rae8 {[%emt 0:01:49]} 21. Bxg4 {[%emt 0:18:58]} Nxg4 {[%emt 0:00:16]} 22. Qd2 {[%emt 0:00:07]} Re3 {[%emt 0:01:45]} 23. Qg2 {[%emt 0:00:07]} Nxh2 {[%emt 0:03:34]} 24. Ne2 {[%emt 0:08:30]} Rxe2 {[%emt 0:00:22]} 25. Rf2 {[%emt 0:00:01]} Rxf2 {[%emt 0:00:39]} 26. Qxf2 {[%emt 0:00:09]} Ng4 {[%emt 0:00:17]} 27. Qg2 {[%emt 0:00:56]} Qe5 {[%emt 0:00:26]} 28. c4 {[%emt 0:00:47]} Qxg3 {[%emt 0:02:08]} 29. Qxg3 {[%emt 0:00:22]} Bxg3 {[%emt 0:00:02]} 30. Kg2 {[%emt 0:00:07]} Be5 {[%emt 0:00:21]} 31. d4 {[%emt 0:01:11]} Bd6 {[%emt 0:01:24]} 32. c5 {[%emt 0:00:13]} Be7 {[%emt 0:00:08]} 33. Re1 {[%emt 0:00:06]} Bg5 {[%emt 0:00:13]} 34. b5 {[%emt 0:01:08]} Ne3+ {[%emt 0:00:20]} 35. Kf3 {[%emt 0:00:07]} Nc4 {[%emt 0:00:19]} 36. Bc3 {[%emt 0:00:27]} f5 {[%emt 0:00:37]} 37. a4 {[%emt 0:00:32]} Kf7 {[%emt 0:00:20]} 38. a5 {[%emt 0:00:36]} Re8 {[%emt 0:03:15]} 39. b6 {[%emt 0:00:51]} cxb6 {[%emt 0:00:35]} 40. cxb6 {[%emt 0:01:04]} axb6 {[%emt 0:00:11]} 0-1

[Event "FIDE World Junior U20-ch Girls 2025"]
[Site "Petrovac"]
[Date "2025.02.28"]
[Round "4.30"]
[White "Sulyok, Eszter"]
[Black "Nguyen, Binh Vy"]
[Result "1-0"]
[Annotator "RC"]
[ECO "A16"]
[WhiteElo "2109"]
[BlackElo "1926"]
[PlyCount "205"]
[EventDate "2025.02.23"]
[EventType "swiss"]
[EventCountry "MNE"]
[SourceTitle "playchess.com"]
[Source "ChessBase"]
[SourceQuality "1"]
[TimeControl "40/5400+30:1800+30"]

1. c4 {[%emt 0:00:04]} Nf6 {[%emt 0:00:07]} 2. Nc3 {[%emt 0:00:04]} c5 {[%emt 0:00:16]} 3. e4 {[%emt 0:00:25]} Nc6 {[%emt 0:00:10]} 4. Nge2 {[%emt 0:03:31]} e6 {[%emt 0:03:15]} 5. d4 {[%emt 0:08:41]} cxd4 {[%emt 0:00:18]} 6. Nxd4 {[%emt 0:00:05]} Bb4 {[%emt 0:00:43]} 7. Nc2 {[%emt 0:04:23]} Bxc3+ {[%emt 0:07:09]} 8. bxc3 {[%emt 0:01:16]} O-O {[%emt 0:03:03]} 9. Bd3 {[%emt 0:08:50]} Qa5 {[%emt 0:08:53]} 10. O-O {[%emt 0:03:29]} b6 {[%emt 0:05:52]} 11. Rb1 {[%emt 0:11:22]} Qh5 {[%emt 0:06:33]} 12. Qd2 {[%emt 0:04:36]} Ba6 {[%emt 0:03:00]} 13. f4 {[%emt 0:04:30]} d6 {[%emt 0:06:15]} 14. Ba3 {[%emt 0:01:10]} Rfd8 {[%emt 0:03:41]} 15. Ne3 {[%emt 0:09:39]} Rac8 {[%emt 0:07:08]} 16. Rf3 {[%emt 0:01:43]} Qa5 {[%emt 0:07:10]} 17. Qb2 {[%emt 0:10:34]} Nb8 {[%emt 0:10:18]} 18. Qb3 {[%emt 0:05:34]} d5 {[%emt 0:09:48]} 19. Bb4 {[%emt 0:07:32]} dxc4 {[%emt 0:04:37]} 20. Nxc4 {[%emt 0:00:07]} Qh5 {[%emt 0:04:37]} 21. Rh3 {[%emt 0:08:24]} Bxc4 {[%emt 0:02:40]} 22. Bxc4 {[%emt 0:00:10]} Qg4 {[%emt 0:00:33]} 23. Be7 {[%emt 0:01:16]} Rd2 {[%emt 0:03:12]} 24. Rg3 {[%emt 0:00:43]} Qxf4 {[%emt 0:01:11]} 25. Rf1 {[%emt 0:01:56]} Qxe4 {[%emt 0:00:39]} 26. Bxf6 {[%emt 0:00:12]} g6 {[%emt 0:01:06]} 27. Bg5 {[%emt 0:02:09]} Rd7 {[%emt 0:00:53]} 28. Bb5 {[%emt 0:00:08]} Rd5 {[%emt 0:00:29]} 29. Qb1 {[%emt 0:01:01]} Qe5 {[%emt 0:00:39]} 30. Bf6 {[%emt 0:00:13]} Qh5 {[%emt 0:00:32]} 31. Bd3 {[%emt 0:00:28]} Nd7 {[%emt 0:00:26]} 32. c4 {[%emt 0:00:33]} Ra5 {[%emt 0:00:38]} 33. Qb2 {[%emt 0:00:36]} e5 {[%emt 0:00:23]} 34. Bf5 {[%emt 0:01:07]} Rc7 {[%emt 0:00:36]} 35. Bd8 {[%emt 0:00:20]} Rc8 {[%emt 0:00:31]} 36. Be7 {[%emt 0:00:31]} Rc7 {[%emt 0:00:27]} 37. Qd2 {[%emt 0:00:05]} Rac5 {[%emt 0:00:39]} 38. Rg5 {[%emt 0:00:38]} Qh6 {[%emt 0:00:18]} 39. Bxd7 {[%emt 0:00:42]} Rxc4 {[%emt 0:00:14]} 40. Bf5 {[%emt 0:00:10]} Rd4 {[%emt 0:00:51]} 41. Qe3 {[%emt 0:31:01]} Rxe7 {[%emt 0:00:54]} 42. Rxg6+ {[%emt 0:00:00]} Qxg6 {[%emt 0:00:09]} 43. Bxg6 {[%emt 0:00:00]} hxg6 {[%emt 0:00:26]} 44. Qg5 {[%emt 0:00:00]} Re6 {[%emt 0:01:14]} 45. Qe3 {[%emt 0:00:00]} Rd7 {[%emt 0:03:06]} 46. h4 {[%emt 0:00:00]} Rde7 {[%emt 0:03:44]} 47. h5 {[%emt 0:00:00]} Re8 {[%emt 0:01:34]} 48. Rf3 {[%emt 0:00:00]} R8e7 {[%emt 0:10:24]} 49. Rh3 {[%emt 0:00:00]} Kg7 {[%emt 0:03:49]} 50. Qe4 {[%emt 0:00:00]} Re8 {[%emt 0:03:54]} 51. Qh4 {[%emt 0:00:00]} Rh8 {[%emt 0:00:58]} 52. Qg5 {[%emt 0:00:00]} Rh6 {[%emt 0:00:38]} 53. hxg6 {[%emt 0:05:08]} Rhxg6 {[%emt 0:00:51]} 54. Qh5 {[%emt 0:00:07]} Rh6 {[%emt 0:01:29]} 55. Rg3+ {[%emt 0:00:07]} Rhg6 {[%emt 0:01:00]} 56. Re3 {[%emt 0:00:21]} Rh6 {[%emt 0:01:54]} 57. Qf5 {[%emt 0:00:07]} Rhf6 {[%emt 0:00:27]} 58. Rg3+ {[%emt 0:00:14]} Rg6 {[%emt 0:00:53]} 59. Rxg6+ {[%emt 0:00:24]} Rxg6 {[%emt 0:00:04]} 60. Qxe5+ {[%emt 0:00:06]} Rf6 {[%emt 0:01:18]} 61. Kh2 {[%emt 0:01:20]} Kg6 {[%emt 0:00:18]} 62. Qc7 {[%emt 0:00:49]} a5 {[%emt 0:00:32]} 63. Kg3 {[%emt 0:00:14]} Kh7 {[%emt 0:00:24]} 64. Qc2+ {[%emt 0:00:59]} Kh6 {[%emt 0:00:18]} 65. Kh4 {[%emt 0:00:23]} Rg6 {[%emt 0:00:53]} 66. g4 {[%emt 0:00:18]} Kg7 {[%emt 0:00:19]} 67. Qc3+ {[%emt 0:00:05]} Kg8 {[%emt 0:00:13]} 68. a4 {[%emt 0:00:39]} Kh7 {[%emt 0:00:20]} 69. Qd3 {[%emt 0:01:12]} Kg7 {[%emt 0:00:21]} 70. Qd4+ {[%emt 0:00:06]} Kh7 {[%emt 0:00:22]} 71. Kg3 {[%emt 0:00:22]} Re6 {[%emt 0:00:28]} 72. Kf4 {[%emt 0:00:13]} Kg8 {[%emt 0:01:55]} 73. Kf5 {[%emt 0:00:25]} Kh7 {[%emt 0:00:55]} 74. Qd7 {[%emt 0:00:14]} Kg7 {[%emt 0:00:14]} 75. g5 {[%emt 0:01:09]} Rg6 {[%emt 0:00:19]} 76. Qe7 {[%emt 0:00:18]} Re6 {[%emt 0:00:34]} 77. Qc7 {[%emt 0:01:51]} Rg6 {[%emt 0:00:35]} 78. Qe5+ {[%emt 0:00:33]} Kg8 {[%emt 0:00:09]} 79. Qd5 {[%emt 0:00:11]} Kg7 {[%emt 0:00:14]} 80. Ke4 {[%emt 0:00:36]} Re6+ {[%emt 0:01:04]} 81. Kd4 {[%emt 0:00:17]} Kg6 {[%emt 0:00:11]} 82. Kc4 {[%emt 0:00:08]} Kg7 {[%emt 0:00:49]} 83. Kb5 {[%emt 0:00:25]} Rg6 {[%emt 0:00:14]} 84. Ka6 {[%emt 0:00:31]} Kg8 {[%emt 0:01:12]} 85. Qe5 {[%emt 0:00:31]} Kf8 {[%emt 0:00:47]} 86. Qb8+ {[%emt 0:00:19]} Kg7 {[%emt 0:00:23]} 87. Qd8 {[%emt 0:00:32]} Kh7 {[%emt 0:00:29]} 88. Kb7 {[%emt 0:00:48]} Kg7 {[%emt 0:00:08]} 89. Qd5 {[%emt 0:00:18]} Kf8 {[%emt 0:00:24]} 90. Kc7 {[%emt 0:00:11]} Kg7 {[%emt 0:00:10]} 91. Kd7 {[%emt 0:00:14]} Re6 {[%emt 0:00:25]} 92. Qf5 {[%emt 0:00:38]} Rg6 {[%emt 0:00:18]} 93. Ke8 {[%emt 0:00:43]} Re6+ {[%emt 0:00:06]} 94. Kd8 {[%emt 0:00:04]} Kf8 {[%emt 0:00:26]} 95. Qf6 {[%emt 0:01:30]} Rxf6 {[%emt 0:01:05]} 96. gxf6 {[%emt 0:00:05]} Kg8 {[%emt 0:00:05]} 97. Ke7 {[%emt 0:00:05]} Kh7 {[%emt 0:00:11]} 98. Kxf7 {[%emt 0:00:06]} b5 {[%emt 0:00:20]} 99. axb5 {[%emt 0:00:05]} a4 {[%emt 0:00:06]} 100. b6 {[%emt 0:00:19]} a3 {[%emt 0:00:04]} 101. b7 {[%emt 0:00:02]} a2 {[%emt 0:00:06]} 102. b8=Q {[%emt 0:00:04]} a1=Q {[%emt 0:00:06]} 103. Qh2# {[%emt 0:00:06]} 1-0